lending/lending_fUSD_20250920
["ID","MTS","AMOUNT","RATE_DAILY","PERIOD"]
[386581495,1758409851621,-400.0,0.00024657,3]
[386581496,1758409851631,-400.0,0.00024657,3]
[386581497,1758409851640,-400.0,0.00024657,3]
[386581498,1758409851649,-400.0,0.00024657,3]
[386581499,1758409851658,-400.0,0.00024657,3]
[386581500,1758409851668,-400.0,0.00024657,3]
[386581501,1758409851677,-400.0,0.00024657,3]
[386581502,1758409851686,-400.0,0.00024657,3]
[386581503,1758409851696,-400.0,0.00024657,3]
[386581504,1758409851705,-400.0,0.00024657,3]
[386581505,1758409851715,-400.0,0.00024657,3]
[386581506,1758409851724,-400.0,0.00024657,3]
[386581507,1758409851733,-950.91,0.00024657,3]
[386581508,1758409851743,-400.0,0.00024657,3]
[386581509,1758409851752,-950.91,0.00024657,3]
[386581510,1758409851762,-950.91,0.00024657,3]
[386581511,1758409851772,-950.91,0.00024657,3]
[386581512,1758409851781,-950.91,0.00024657,3]
[386581513,1758409851791,-950.91,0.00024657,3]
[386581514,1758409851800,-950.91,0.00024657,3]
[386581515,1758409851809,-950.91,0.00024657,3]
[386581516,1758409851819,-400.0,0.00024657,3]
[386581517,1758409851827,-950.91,0.00024657,3]
[386581518,1758409851837,-400.0,0.00024657,3]
[386581519,1758409851846,-950.91,0.00024657,3]
[386581520,1758409851855,-950.91,0.00024657,3]
[386581521,1758409851867,-950.91,0.00024657,3]
[386581522,1758409851876,-400.0,0.00024657,3]
[386581523,1758409851885,-950.91,0.00024657,3]
[386581524,1758409851895,-400.0,0.00024657,3]
[386581525,1758409851904,-950.91,0.00024657,3]
[386581526,1758409851913,-400.0,0.00024657,3]
[386581527,1758409851923,-950.91,0.00024657,3]
[386581528,1758409851933,-950.91,0.00024657,3]
[386581529,1758409851943,-950.91,0.00024657,3]
[386581530,1758409851952,-400.0,0.00024657,3]
[386581531,1758409851962,-425.74235186,0.00024657,3]
[386581532,1758409851971,-400.0,0.00024657,3]
[386581533,1758409851980,-400.01,0.00024657,5]
[386581534,1758409851990,-400.0,0.00024657,3]
[386581535,1758409851999,-400.15,0.00024657,3]
[386581536,1758409852008,-400.0,0.00024657,3]
[386581537,1758409852017,-400.0,0.00024657,3]
[386581538,1758409852027,-400.0,0.00024657,3]
[386581539,1758409852037,-400.0,0.00024657,3]
[386581540,1758409852046,-400.0,0.00024657,3]
[386581541,1758409852056,-400.0,0.00024657,3]
[386581542,1758409852065,-400.0,0.00024657,3]
[386581543,1758409852075,-400.0,0.00024657,3]
[386581544,1758409852083,-400.0,0.00024657,3]
[386581545,1758409852093,-731.51,0.00024657,3]
[386581546,1758409852102,-400.0,0.00024657,3]
[386581547,1758409852111,-400.0,0.00024657,3]
[386581548,1758409852121,-400.0,0.00024657,3]
[386581549,1758409852130,-418.99020803,0.00024657,3]
[386581550,1758409852139,-400.0,0.00024657,3]
[386581551,1758409852149,-400.0,0.00024657,3]
[386581552,1758409852158,-400.0,0.00024657,3]
[386581553,1758409852168,-400.0,0.00024657,3]
[386581554,1758409852177,-400.0,0.00024657,3]
[386581555,1758409852187,-400.0,0.00024657,3]
[386581556,1758409852196,-400.0,0.00024657,3]
[386581557,1758409852205,-400.0,0.00024657,3]
[386581558,1758409852215,-400.0,0.00024657,3]
[386581559,1758409852224,-400.0,0.00024657,3]
[386581560,1758409852233,-400.0,0.00024657,3]
[386581561,1758409852243,-400.0,0.00024657,3]
[386581562,1758409852252,-400.0,0.00024657,3]
[386581563,1758409852262,-1127.41,0.00024657,3]
[386581564,1758409852272,-647.4,0.00024657,3]
[386581565,1758409852282,-400.0,0.00024657,3]
[386581566,1758409852291,-400.0,0.00024657,3]
[386581567,1758409852301,-400.0,0.00024657,3]
[386581568,1758409852311,-400.0,0.00024657,3]
[386581569,1758409852320,-400.0,0.00024657,3]
[386581570,1758409852330,-400.0,0.00024657,3]
[386581571,1758409852340,-609.45,0.00024657,3]
[386581572,1758409852349,-400.0,0.00024657,3]
[386581573,1758409852359,-400.0,0.00024657,3]
[386581574,1758409852369,-400.0,0.00024657,3]
[386581575,1758409852378,-400.0,0.00024657,3]
[386581576,1758409852388,-498.67,0.00024657,3]
[386581577,1758409852397,-400.0,0.00024657,3]
[386581578,1758409852407,-400.0,0.00024657,3]
[386581579,1758409852416,-159.138225,0.00024657,7]
[386581580,1758409852426,-400.0,0.00024657,3]
[386581581,1758409852435,-400.0,0.00024657,3]
[386581582,1758409852445,-425.1,0.00024657,3]
[386581583,1758409852455,-400.0,0.00024657,2]
[386581584,1758409852464,-400.0,0.00024657,3]
[386581585,1758409852474,-400.0,0.00024657,3]
[386581586,1758409852483,-400.0,0.00024657,3]
[386581587,1758409852493,-449.4,0.00024657,3]
[386581588,1758409852502,-400.0,0.00024657,3]
[386581589,1758409852512,-400.0,0.00024657,3]
[386581590,1758409852521,-400.0,0.00024657,3]
[386581591,1758409852532,-400.0,0.00024657,3]
[386581592,1758409852543,-400.0,0.00024657,3]
[386581593,1758409852552,-400.0,0.00024657,3]
[386581594,1758409852562,-400.0,0.00024657,3]
[386581595,1758409852571,-400.0,0.00024657,3]
[386581596,1758409852582,-445.83,0.00024657,3]
[386581597,1758409852592,-400.0,0.00024657,3]
[386581598,1758409852601,-400.0,0.00024657,3]
[386581599,1758409852611,-424.05,0.00024657,3]
[386581600,1758409852620,-400.0,0.00024657,3]
[386581601,1758409852629,-400.0,0.00024657,3]
[386581602,1758409852638,-400.0,0.00024657,3]
[386581603,1758409852649,-400.0,0.00024657,3]
[386581604,1758409852658,-400.0,0.00024657,3]
[386581605,1758409852668,-241.74068796,0.00024657,3]
[386581678,1758410036537,500.0,0.00013699,2]
[386581840,1758410526521,159.67,0.00010601,2]
[386581841,1758410526711,159.67,0.00011661,2]
[386581842,1758410526936,159.67,0.00012722,2]
[386581843,1758410527143,159.67,0.00013782,2]
[386581844,1758410527379,159.67,0.00014842,2]
[386581845,1758410527563,159.67,0.00015902,2]
[386581846,1758410528163,159.67,0.00016962,2]
[386581847,1758410528791,159.67,0.00018022,2]
[386581849,1758410535138,1000.0,0.00024657,120]
[386581850,1758410535467,600.0,0.0002493,120]
[386581866,1758410648372,262.53993849,0.00018,2]
[386581870,1758410832194,250.0,0.00015,2]
[386581945,1758410896173,630.80428135,0.000135,2]
[386581946,1758410903146,1903.88560838,0.0001,2]
[386581947,1758410911989,220.68489682,0.0001,2]
[386581950,1758410925254,859.60492327,0.0001,2]
[386581952,1758410940975,18000.0,0.0003,120]
[386582004,1758411040204,-159.67,0.00019082,2]
[386582005,1758411040214,-727.63573709,0.000199,2]
[386582006,1758411040224,-279.19,0.0001999,2]
[386582007,1758411040234,-279.19,0.0001999,2]
[386582008,1758411040243,-160.0,0.00019993,2]
[386582009,1758411040254,-1200.0,0.00019999,2]
[386582010,1758411040264,-300.0,0.00019999,2]
[386582011,1758411040273,-300.0,0.00019999,2]
[386582012,1758411040283,-302.66627399,0.00019999,2]
[386582013,1758411040292,-1371.77,0.0002,2]
[386582014,1758411040302,-776020.9200257,0.0002,2]
[386582015,1758411040312,-38667.20571822,0.0002,5]
[386582016,1758411040323,-87811.41698496,0.0002,2]
[386582017,1758411040332,-500.0,0.0002,2]
[386582018,1758411040342,-2000.0,0.0002,2]
[386582019,1758411040352,-12468.19,0.0002,2]
[386582020,1758411040362,-150.15,0.0002,2]
[386582021,1758411040371,-151.43,0.0002,2]
[386582022,1758411040380,-152.76,0.0002,2]
[386582023,1758411040390,-152.34,0.0002,2]
[386582024,1758411040399,-151.14,0.0002,2]
[386582025,1758411040409,-150.09,0.0002,2]
[386582026,1758411040418,-150.85,0.0002,2]
[386582027,1758411040428,-12468.19,0.000201,2]
[386582028,1758411040438,-159.67,0.00020143,2]
[386582029,1758411040448,-727.63573709,0.00020235,2]
[386582030,1758411040458,-300.0,0.00020274,2]
[386582031,1758411040467,-150.0,0.00020441,4]
[386582032,1758411040477,-150.0,0.00020441,4]
[386582033,1758411040486,-150.0,0.00020441,4]
[386582034,1758411040496,-150.0,0.00020441,4]
[386582035,1758411040505,-150.0,0.00020441,4]
[386582036,1758411040515,-150.0,0.00020441,4]
[386582037,1758411040526,-150.0,0.00020441,4]
[386582038,1758411040536,-150.0,0.00020441,4]
[386582039,1758411040546,-150.0,0.00020441,4]
[386582040,1758411040556,-150.0,0.00020441,4]
[386582041,1758411040565,-150.0,0.00020441,4]
[386582042,1758411040575,-150.0,0.00020441,4]
[386582043,1758411040584,-727.63573709,0.00020569,2]
[386582044,1758411040593,-162.74,0.00020856,2]
[386582045,1758411040603,-150.0,0.00020895,4]
[386582046,1758411040612,-727.63573709,0.00020904,2]
[386582047,1758411040623,-160.76253676,0.00020978,2]
[386582048,1758411040632,-195.0,0.00020991,2]
[386582049,1758411040642,-200.0,0.00021075,2]
[386582050,1758411040651,-12468.19,0.000212,2]
[386582051,1758411040661,-159.67,0.00021203,2]
[386582052,1758411040671,-151.77,0.00021229,2]
[386582053,1758411040680,-150.21,0.00021229,2]
[386582054,1758411040690,-727.63573709,0.00021238,2]
[386582055,1758411040700,-150.0,0.00021341,7]
[386582056,1758411040709,-150.0,0.0002135,4]
[386582057,1758411040718,-727.63573709,0.00021573,2]
[386582058,1758411040728,-517.69,0.0002162,2]
[386582059,1758411040737,-150.0,0.00021679,2]
[386582060,1758411040747,-12468.19,0.000217,2]
[386582061,1758411040756,-361.0,0.00021777,2]
[386582062,1758411040766,-150.0,0.00021804,4]
[386582063,1758411040775,-157.51,0.00021823,2]
[386582064,1758411040785,-151.0,0.00021856,2]
[386582065,1758411040795,-1680.0,0.00021881,2]
[386582066,1758411040804,-1441.47,0.00021891,2]
[386582067,1758411040814,-262.34759495,0.00021904,2]
[386582068,1758411040824,-727.63573709,0.00021907,2]
[386582069,1758411040834,-405.95,0.00021917,2]
[386582070,1758411040843,-400.0,0.00021917,2]
[386582071,1758411040852,-400.0,0.00021917,2]
[386582072,1758411040862,-499.4,0.00021917,2]
[386582073,1758411040871,-400.0,0.00021917,2]
[386582074,1758411040881,-400.0,0.00021917,2]
[386582075,1758411040893,-400.0,0.00021917,2]
[386582076,1758411040902,-482.98470081,0.00021917,2]
[386582077,1758411040912,-400.0,0.00021917,2]
[386582078,1758411040921,-400.0,0.00021917,2]
[386582079,1758411040931,-1221.05,0.00021917,2]
[386582080,1758411040940,-400.0,0.00021917,2]
[386582081,1758411040950,-456.39,0.00021917,2]
[386582082,1758411040959,-412.83,0.00021917,2]
[386582083,1758411040968,-400.0,0.00021917,2]
[386582084,1758411040978,-480.65127049,0.00021917,2]
[386582085,1758411040988,-400.0,0.00021917,2]
[386582086,1758411040998,-422.18,0.00021917,2]
[386582087,1758411041007,-735.5,0.00021917,2]
[386582088,1758411041017,-400.0,0.00021917,2]
[386582089,1758411041027,-400.0,0.00021917,2]
[386582090,1758411041036,-973.78,0.00021917,2]
[386582091,1758411041046,-400.0,0.00021917,2]
[386582092,1758411041056,-780.68,0.00021917,2]
[386582093,1758411041066,-460.22,0.00021917,2]
[386582094,1758411041075,-400.0,0.00021917,2]
[386582095,1758411041085,-400.0,0.00021917,2]
[386582096,1758411041098,-400.0,0.00021917,2]
[386582097,1758411041108,-445.21,0.00021917,2]
[386582098,1758411041117,-783.53,0.00021917,2]
[386582099,1758411041126,-400.0,0.00021917,2]
[386582100,1758411041136,-1017.9,0.00021917,2]
[386582101,1758411041145,-400.0,0.00021917,2]
[386582102,1758411041155,-400.0,0.00021917,2]
[386582103,1758411041165,-400.0,0.00021917,2]
[386582104,1758411041177,-400.0,0.00021917,2]
[386582105,1758411041187,-400.0,0.00021917,2]
[386582106,1758411041197,-400.0,0.00021917,2]
[386582107,1758411041206,-400.0,0.00021917,2]
[386582108,1758411041215,-400.0,0.00021917,2]
[386582109,1758411041225,-400.0,0.00021917,2]
[386582110,1758411041235,-400.0,0.00021917,2]
[386582111,1758411041245,-400.0,0.00021917,2]
[386582112,1758411041256,-400.0,0.00021917,2]
[386582113,1758411041267,-905.84,0.00021917,2]
[386582114,1758411041276,-400.0,0.00021917,2]
[386582115,1758411041286,-400.0,0.00021917,2]
[386582116,1758411041295,-400.0,0.00021917,2]
[386582117,1758411041305,-516.97,0.00021917,2]
[386582118,1758411041315,-917.42,0.00021917,2]
[386582119,1758411041324,-400.0,0.00021917,2]
[386582120,1758411041333,-400.0,0.00021917,2]
[386582121,1758411041343,-416.67,0.00021917,2]
[386582122,1758411041352,-1155.51,0.00021917,2]
[386582123,1758411041361,-400.0,0.00021917,2]
[386582124,1758411041372,-400.0,0.00021917,2]
[386582125,1758411041381,-400.0,0.00021917,2]
[386582126,1758411041391,-400.0,0.00021917,2]
[386582127,1758411041400,-400.0,0.00021917,2]
[386582128,1758411041410,-400.0,0.00021917,2]
[386582129,1758411041422,-400.0,0.00021917,2]
[386582130,1758411041432,-427.62,0.00021917,2]
[386582131,1758411041443,-466.23,0.00021917,2]
[386582132,1758411041453,-400.0,0.00021917,2]
[386582133,1758411041462,-417.39,0.00021917,2]
[386582134,1758411041472,-400.0,0.00021917,2]
[386582135,1758411041481,-400.0,0.00021917,2]
[386582136,1758411041491,-470.39,0.00021917,2]
[386582137,1758411041501,-400.0,0.00021917,2]
[386582138,1758411041510,-400.0,0.00021917,2]
[386582139,1758411041519,-400.0,0.00021917,2]
[386582140,1758411041528,-400.0,0.00021917,2]
[386582141,1758411041538,-400.0,0.00021917,2]
[386582142,1758411041547,-400.0,0.00021917,2]
[386582143,1758411041557,-400.0,0.00021917,2]
[386582144,1758411041567,-400.0,0.00021917,2]
[386582145,1758411041577,-753.02,0.00021917,2]
[386582146,1758411041586,-1423.3,0.00021917,2]
[386582147,1758411041596,-1080.62,0.00021917,2]
[386582148,1758411041606,-25010.4,0.00021917,2]
[386582149,1758411041617,-430.06,0.00021917,2]
[386582150,1758411041627,-1865.61,0.00021917,2]
[386582151,1758411041637,-2667.35,0.00021917,2]
[386582152,1758411041647,-1922.03,0.00021917,2]
[386582153,1758411041656,-3013.62,0.00021917,2]
[386582154,1758411041666,-2227.82,0.00021917,2]
[386582155,1758411041675,-400.0,0.00021917,2]
[386582156,1758411041685,-1911.57,0.00021917,2]
[386582157,1758411041694,-1326.64,0.00021917,2]
[386582158,1758411041704,-400.0,0.00021917,2]
[386582159,1758411041714,-1598.81,0.00021917,2]
[386582160,1758411041724,-400.0,0.00021917,2]
[386582161,1758411041734,-1006.97,0.00021917,2]
[386582162,1758411041744,-400.0,0.00021917,2]
[386582163,1758411041753,-500.0,0.00021917,2]
[386582164,1758411041763,-500.0,0.00021917,2]
[386582165,1758411041772,-500.0,0.00021917,2]
[386582166,1758411041782,-642.49046454,0.00021917,2]
[386582167,1758411041792,-400.0,0.00021917,2]
[386582168,1758411041802,-2287.61,0.00021917,2]
[386582169,1758411041812,-1946.76,0.00021917,2]
[386582170,1758411041822,-365.3463684,0.00021917,2]
[386582171,1758411041834,-2942.69,0.00021917,2]
[386582172,1758411041844,-635.03,0.00021917,2]
[386582173,1758411041855,-510.31,0.00021917,2]
[386582174,1758411041865,-400.0,0.00021917,2]
[386582175,1758411041878,-400.0,0.00021917,2]
[386582176,1758411041898,-400.0,0.00021917,2]
[386582177,1758411041908,-497.55411335,0.00021917,2]
[386582178,1758411041918,-400.0,0.00021917,2]
[386582179,1758411041928,-400.0,0.00021917,2]
[386582180,1758411041938,-2086.33,0.00021917,2]
[386582181,1758411041949,-400.0,0.00021917,2]
[386582182,1758411041959,-400.0,0.00021917,2]
[386582183,1758411041969,-4322.37,0.00021917,2]
[386582184,1758411041979,-1428.44,0.00021917,2]
[386582185,1758411041989,-1503.82,0.00021917,2]
[386582186,1758411041998,-401.49156304,0.00021917,2]
[386582187,1758411042008,-400.0,0.00021917,2]
[386582188,1758411042017,-1087.06,0.00021917,2]
[386582189,1758411042026,-517.51,0.00021917,2]
[386582190,1758411042037,-1799.59,0.00021917,2]
[386582191,1758411042046,-400.0,0.00021917,2]
[386582192,1758411042056,-400.0,0.00021917,2]
[386582194,1758411042066,-400.0,0.00021917,2]
[386582195,1758411042075,-400.0,0.00021917,2]
[386582196,1758411042084,-1269.39,0.00021917,2]
[386582197,1758411042096,-400.0,0.00021917,2]
[386582198,1758411042106,-400.0,0.00021917,2]
[386582199,1758411042115,-400.0,0.00021917,2]
[386582200,1758411042124,-400.0,0.00021917,2]
[386582201,1758411042133,-400.0,0.00021917,2]
[386582202,1758411042143,-1828.95,0.00021917,2]
[386582203,1758411042152,-1828.95,0.00021917,2]
[386582204,1758411042161,-1828.95,0.00021917,2]
[386582205,1758411042170,-1828.95,0.00021917,2]
[386582206,1758411042179,-400.0,0.00021917,2]
[386582207,1758411042189,-810.42,0.00021917,2]
[386582208,1758411042198,-400.0,0.00021917,2]
[386582209,1758411042208,-5158.25,0.00021917,2]
[386582210,1758411042217,-842.58,0.00021917,2]
[386582211,1758411042227,-1153.91,0.00021917,2]
[386582212,1758411042236,-646.59,0.00021917,2]
[386582213,1758411042246,-1052.06,0.00021917,2]
[386582214,1758411042255,-400.0,0.00021917,2]
[386582215,1758411042265,-400.0,0.00021917,2]
[386582216,1758411042274,-1366.55,0.00021917,2]
[386582217,1758411042283,-400.0,0.00021917,2]
[386582218,1758411042294,-697.33,0.00021917,2]
[386582219,1758411042306,-400.0,0.00021917,2]
[386582220,1758411042318,-245.08404777,0.00021917,2]
[386582221,1758411042329,-400.0,0.00021917,2]
[386582222,1758411042339,-404.27,0.00021917,2]
[386582223,1758411042351,-400.0,0.00021917,2]
[386582224,1758411042360,-542.58,0.00021917,2]
[386582225,1758411042370,-1046.52,0.00021917,2]
[386582226,1758411042379,-400.0,0.00021917,2]
[386582227,1758411042388,-1420.88,0.00021917,2]
[386582228,1758411042398,-1207.09,0.00021917,2]
[386582229,1758411042407,-1542.07,0.00021917,2]
[386582230,1758411042416,-5000.0,0.00021918,2]
[386582231,1758411042426,-2000.0,0.00022,2]
[386582232,1758411042435,-838.21,0.00022,2]
[386582233,1758411042445,-162.0,0.00022,2]
[386582234,1758411042454,-485.78694504,0.00022088,2]
[386582235,1758411042464,-400.0,0.00022089,2]
[386582237,1758411042473,-400.0,0.00022089,2]
[386582239,1758411042482,-400.0,0.00022089,2]
[386582241,1758411042491,-400.0,0.00022089,2]
[386582242,1758411042500,-462.35219958,0.00022089,2]
[386582244,1758411042510,-400.0,0.00022089,2]
[386582246,1758411042519,-400.0,0.00022089,2]
[386582247,1758411042529,-400.0,0.00022089,2]
[386582248,1758411042538,-400.0,0.00022089,2]
[386582249,1758411042548,-400.0,0.0002209,2]
[386582250,1758411042558,-400.0,0.0002209,2]
[386582251,1758411042567,-400.0,0.0002209,2]
[386582252,1758411042577,-400.0,0.0002209,2]
[386582253,1758411042587,-400.0,0.0002209,2]
[386582254,1758411042596,-400.0,0.0002209,2]
[386582255,1758411042606,-400.0,0.0002209,2]
[386582256,1758411042615,-400.0,0.0002209,2]
[386582257,1758411042625,-400.0,0.0002209,2]
[386582258,1758411042634,-400.0,0.0002209,2]
[386582260,1758411042644,-400.0,0.0002209,2]
[386582261,1758411042653,-400.0,0.0002209,2]
[386582262,1758411042662,-400.0,0.0002209,2]
[386582263,1758411042673,-400.0,0.0002209,2]
[386582264,1758411042683,-400.0,0.0002209,2]
[386582265,1758411042694,-400.0,0.0002209,2]
[386582266,1758411042704,-400.0,0.0002209,2]
[386582267,1758411042718,-400.0,0.0002209,2]
[386582268,1758411042728,-400.0,0.0002209,2]
[386582269,1758411042738,-400.0,0.0002209,2]
[386582270,1758411042748,-400.0,0.0002209,2]
[386582271,1758411042761,-400.0,0.0002209,2]
[386582272,1758411042770,-400.0,0.0002209,2]
[386582273,1758411042779,-400.0,0.0002209,2]
[386582274,1758411042789,-400.0,0.0002209,2]
[386582275,1758411042798,-400.0,0.0002209,2]
[386582276,1758411042808,-400.0,0.0002209,2]
[386582277,1758411042817,-400.0,0.0002209,2]
[386582278,1758411042827,-400.0,0.0002209,2]
[386582279,1758411042836,-400.0,0.0002209,2]
[386582280,1758411042846,-400.0,0.0002209,2]
[386582281,1758411042855,-400.0,0.0002209,2]
[386582282,1758411042864,-400.0,0.0002209,2]
[386582283,1758411042874,-400.0,0.0002209,2]
[386582284,1758411042884,-400.0,0.0002209,2]
[386582285,1758411042893,-400.0,0.0002209,2]
[386582286,1758411042903,-400.0,0.0002209,2]
[386582287,1758411042912,-500.0,0.0002209,2]
[386582288,1758411042921,-400.0,0.0002209,2]
[386582289,1758411042930,-400.0,0.0002209,2]
[386582290,1758411042940,-400.0,0.0002209,2]
[386582291,1758411042950,-400.0,0.0002209,2]
[386582292,1758411042959,-400.0,0.0002209,2]
[386582293,1758411042969,-400.0,0.0002209,2]
[386582294,1758411042978,-400.0,0.0002209,2]
[386582295,1758411042987,-400.0,0.0002209,2]
[386582296,1758411042997,-2048.99,0.0002209,2]
[386582297,1758411043006,-1659.76,0.0002209,2]
[386582298,1758411043016,-1236.79,0.0002209,2]
[386582299,1758411043025,-4173.28,0.0002209,2]
[386582300,1758411043035,-4633.73,0.0002209,2]
[386582301,1758411043046,-6322.23,0.0002209,2]
[386582302,1758411043057,-4106.46,0.0002209,2]
[386582303,1758411043067,-400.0,0.0002209,2]
[386582304,1758411043076,-1453.11,0.0002209,2]
[386582305,1758411043085,-2677.19,0.0002209,2]
[386582306,1758411043098,-400.0,0.0002209,2]
[386582307,1758411043108,-400.0,0.0002209,2]
[386582308,1758411043118,-2457.51,0.0002209,2]
[386582309,1758411043129,-400.0,0.0002209,2]
[386582310,1758411043140,-1441.46,0.00022141,2]
[386582311,1758411043149,-1441.46,0.00022164,2]
[386582312,1758411043159,-150.0,0.00022165,2]
[386582313,1758411043168,-1441.46,0.00022165,2]
[386582314,1758411043178,-256.88145102,0.00022167,2]
[386582315,1758411043189,-327.39792777,0.00022168,2]
[386582316,1758411043200,-397.91440452,0.0002217,2]
[386582317,1758411043213,-468.43088127,0.00022171,2]
[386582318,1758411043224,-538.94735802,0.00022172,2]
[386582319,1758411043234,-500.0,0.00022173,2]
[386582320,1758411043243,-609.46383477,0.00022174,2]
[386582321,1758411043253,-679.98031152,0.00022175,2]
[386582322,1758411043262,-750.49678827,0.00022176,2]
[386582323,1758411043272,-821.01326501,0.00022178,2]
[386582324,1758411043282,-1871.3308267,0.00022187,2]
[386582325,1758411043291,-1114.58442637,0.00022187,2]
[386582326,1758411043303,-329.38673771,0.00022188,2]
[386582327,1758411043312,-400.0,0.00022188,2]
[386582328,1758411043323,-400.0,0.00022188,2]
[386582329,1758411043335,-400.0,0.00022188,2]
[386582330,1758411043345,-400.0,0.00022188,2]
[386582331,1758411043356,-400.0,0.00022188,2]
[386582332,1758411043366,-400.0,0.00022188,2]
[386582333,1758411043376,-618.67,0.00022188,2]
[386582334,1758411043386,-400.0,0.00022188,2]
[386582335,1758411043395,-400.0,0.00022188,2]
[386582336,1758411043404,-400.0,0.00022188,2]
[386582337,1758411043414,-400.0,0.00022188,2]
[386582338,1758411043424,-400.0,0.00022188,2]
[386582339,1758411043433,-400.0,0.00022188,2]
[386582340,1758411043443,-400.0,0.00022188,2]
[386582341,1758411043453,-400.0,0.00022188,2]
[386582342,1758411043463,-400.0,0.00022188,2]
[386582343,1758411043473,-400.0,0.00022188,2]
[386582344,1758411043482,-400.0,0.00022188,2]
[386582345,1758411043725,-400.0,0.00022188,2]
[386582346,1758411043745,-400.0,0.00022188,2]
[386582347,1758411043756,-400.0,0.00022188,2]
[386582348,1758411043766,-400.0,0.00022188,2]
[386582349,1758411043776,-400.0,0.00022188,2]
[386582350,1758411043785,-400.0,0.00022188,2]
[386582351,1758411043796,-400.0,0.00022188,2]
[386582352,1758411043805,-400.0,0.00022188,2]
[386582353,1758411043815,-400.0,0.00022188,2]
[386582354,1758411043824,-400.0,0.00022188,2]
[386582355,1758411043835,-400.0,0.00022188,2]
[386582356,1758411043845,-317.87481279,0.00022188,2]
[386582357,1758411043855,-400.0,0.00022188,2]
[386582358,1758411043865,-400.0,0.00022188,2]
[386582359,1758411043875,-400.0,0.00022188,2]
[386582360,1758411043885,-400.0,0.00022188,2]
[386582361,1758411043895,-400.0,0.00022188,2]
[386582362,1758411043905,-400.0,0.00022188,2]
[386582363,1758411043915,-2778.05,0.00022188,2]
[386582364,1758411043925,-2740.5,0.00022188,2]
[386582365,1758411043934,-2530.65,0.00022188,2]
[386582366,1758411043944,-2560.68,0.00022188,2]
[386582367,1758411043954,-400.0,0.00022188,2]
[386582368,1758411043964,-1181.97,0.00022188,2]
[386582369,1758411043974,-642.68,0.00022188,2]
[386582370,1758411043983,-620.69,0.00022188,2]
[386582371,1758411043993,-1787.31,0.00022188,2]
[386582372,1758411044003,-400.0,0.00022188,2]
[386582373,1758411044013,-1779.88,0.00022188,2]
[386582374,1758411044023,-401.83559319,0.00022188,2]
[386582375,1758411044033,-861.83,0.00022188,2]
[386582376,1758411044044,-159.138225,0.00022188,7]
[386582377,1758411044055,-151.0,0.00022188,7]
[386582378,1758411044064,-151.0,0.00022188,7]
[386582379,1758411044074,-4024.04,0.00022188,2]
[386582380,1758411044083,-4563.64,0.00022188,2]
[386582381,1758411044093,-400.0,0.00022188,2]